[Event "Titled Tuesday Blitz November 07 Early 2023"]
[White "Sokolovsky, Yahli"]
[Black "Kislinsky, Alexey"]
[WhiteFideId "2820242"]
[BlackFideId "14108801"]
[WhiteElo "2804"]
[BlackElo "2657"]
[Result "0-1"]
[Round "8"]
[TimeControl "180+1"]
[Date "2023.11.07"]
[WhiteClock "0:00:00"]
[BlackClock "0:01:17"]
[Board "32"]

1. b3 {[%clk 0:02:59]}  d5 {[%clk 0:02:54]} 2. Bb2 {[%clk 0:03:00]}  Bf5 {[%clk 0:02:53]} 3. e3 {[%clk 0:03:00]}  e6 {[%clk 0:02:54]} 4. d4 {[%clk 0:03:01]}  Nf6 {[%clk 0:02:54]} 5. Bd3 {[%clk 0:03:02]}  Bxd3 {[%clk 0:02:54]} 6. Qxd3 {[%clk 0:03:03]}  c6 {[%clk 0:02:54]} 7. Nd2 {[%clk 0:03:02]}  Nbd7 {[%clk 0:02:54]} 8. Ngf3 {[%clk 0:03:01]}  Bd6 {[%clk 0:02:52]} 9. Ne5 {[%clk 0:03:01]}  c5 {[%clk 0:02:44]} 10. O-O {[%clk 0:02:58]}  O-O {[%clk 0:02:42]} 11. f4 {[%clk 0:02:55]}  cxd4 {[%clk 0:02:41]} 12. exd4 {[%clk 0:02:55]}  Rc8 {[%clk 0:02:39]} 13. Rf3 {[%clk 0:02:52]}  g6 {[%clk 0:02:29]} 14. Rh3 {[%clk 0:02:46]}  Ne8 {[%clk 0:02:25]} 15. Rf1 {[%clk 0:02:40]}  Ng7 {[%clk 0:02:24]} 16. Ndf3 {[%clk 0:02:35]}  Be7 {[%clk 0:02:13]} 17. Nxd7 {[%clk 0:01:57]}  Qxd7 {[%clk 0:02:12]} 18. Ne5 {[%clk 0:01:58]}  Qe8 {[%clk 0:02:12]} 19. Ng4 {[%clk 0:01:43]}  Nf5 {[%clk 0:02:03]} 20. Ba3 {[%clk 0:01:27]}  h5 {[%clk 0:02:00]} 21. Bxe7 {[%clk 0:00:56]}  Qxe7 {[%clk 0:01:56]} 22. Ne5 {[%clk 0:00:51]}  b5 {[%clk 0:01:47]} 23. c3 {[%clk 0:00:41]}  b4 {[%clk 0:01:44]} 24. c4 {[%clk 0:00:41]}  dxc4 {[%clk 0:01:45]} 25. bxc4 {[%clk 0:00:42]}  Rfd8 {[%clk 0:01:45]} 26. Nf3 {[%clk 0:00:35]}  Qc7 {[%clk 0:01:42]} 27. d5 {[%clk 0:00:08]}  exd5 {[%clk 0:01:39]} 28. cxd5 {[%clk 0:00:09]}  Qc5+ {[%clk 0:01:40]} 29. Kh1 {[%clk 0:00:10]}  Qxd5 {[%clk 0:01:39]} 30. Qa6 {[%clk 0:00:09]}  Ne3 {[%clk 0:01:36]} 31. Rg1 {[%clk 0:00:08]}  Ng4 {[%clk 0:01:33]} 32. Rf1 {[%clk 0:00:06]}  Rc2 {[%clk 0:01:18]} 33. Rg3 {[%clk 0:00:00]}  Rxa2 {[%clk 0:01:17]} 0-1


[Site "https://www.chess.com"]

[Event "Titled Tuesday Blitz November 07 Early 2023"]
[White "Javakhadze, Zurab"]
[Black "Adewumi, Tanitoluwa"]
[WhiteFideId "13603647"]
[BlackFideId "30966396"]
[WhiteElo "2794"]
[BlackElo "2651"]
[Result "1-0"]
[Round "8"]
[TimeControl "180+1"]
[Date "2023.11.07"]
[WhiteClock "0:00:13"]
[BlackClock "0:00:00"]
[Board "33"]

1. Nf3 {[%clk 0:03:00]}  Nf6 {[%clk 0:02:35]} 2. c4 {[%clk 0:03:00]}  e6 {[%clk 0:02:34]} 3. g3 {[%clk 0:03:00]}  b6 {[%clk 0:02:14]} 4. Bg2 {[%clk 0:03:00]}  Bb7 {[%clk 0:02:13]} 5. O-O {[%clk 0:03:00]}  Be7 {[%clk 0:02:12]} 6. Nc3 {[%clk 0:03:00]}  O-O {[%clk 0:02:12]} 7. Re1 {[%clk 0:03:00]}  d5 {[%clk 0:02:12]} 8. d4 {[%clk 0:02:49]}  dxc4 {[%clk 0:02:11]} 9. Qa4 {[%clk 0:02:49]}  c5 {[%clk 0:02:03]} 10. dxc5 {[%clk 0:02:41]}  Bxc5 {[%clk 0:02:04]} 11. Qxc4 {[%clk 0:02:41]}  Nc6 {[%clk 0:01:51]} 12. Bg5 {[%clk 0:02:36]}  Be7 {[%clk 0:01:29]} 13. Red1 {[%clk 0:02:29]}  Qc8 {[%clk 0:01:27]} 14. Rac1 {[%clk 0:02:26]}  h6 {[%clk 0:01:16]} 15. Bxf6 {[%clk 0:02:13]}  Bxf6 {[%clk 0:01:17]} 16. Ne4 {[%clk 0:02:14]}  Be7 {[%clk 0:01:09]} 17. Qa4 {[%clk 0:02:04]}  Qe8 {[%clk 0:00:41]} 18. Nd6 {[%clk 0:01:58]}  Bxd6 {[%clk 0:00:35]} 19. Rxd6 {[%clk 0:01:59]}  Ne7 {[%clk 0:00:31]} 20. Qxe8 {[%clk 0:01:45]}  Rfxe8 {[%clk 0:00:30]} 21. Rc7 {[%clk 0:01:45]}  Ba6 {[%clk 0:00:13]} 22. Rdd7 {[%clk 0:01:37]}  Nd5 {[%clk 0:00:12]} 23. Rxa7 {[%clk 0:01:18]}  Rxa7 {[%clk 0:00:13]} 24. Rxa7 {[%clk 0:01:18]}  Bxe2 {[%clk 0:00:13]} 25. Nd4 {[%clk 0:01:19]}  Bd3 {[%clk 0:00:12]} 26. Rb7 {[%clk 0:01:04]}  Rc8 {[%clk 0:00:10]} 27. Bxd5 {[%clk 0:01:01]}  exd5 {[%clk 0:00:10]} 28. Rxb6 {[%clk 0:01:01]}  Rc4 {[%clk 0:00:11]} 29. Nc6 {[%clk 0:00:52]}  Be4 {[%clk 0:00:08]} 30. f4 {[%clk 0:00:44]}  d4 {[%clk 0:00:05]} 31. Ne5 {[%clk 0:00:37]}  Rc2 {[%clk 0:00:04]} 32. Rd6 {[%clk 0:00:20]}  f6 {[%clk 0:00:04]} 33. Rxd4 {[%clk 0:00:15]}  f5 {[%clk 0:00:04]} 34. Rb4 {[%clk 0:00:14]}  g5 {[%clk 0:00:04]} 35. a4 {[%clk 0:00:14]}  gxf4 {[%clk 0:00:04]} 36. gxf4 {[%clk 0:00:14]}  h5 {[%clk 0:00:03]} 37. a5 {[%clk 0:00:12]}  h4 {[%clk 0:00:04]} 38. a6 {[%clk 0:00:13]}  h3 {[%clk 0:00:04]} 39. a7 {[%clk 0:00:13]}  Rg2+ {[%clk 0:00:04]} 40. Kf1 {[%clk 0:00:13]}  Rxh2 {[%clk 0:00:01]} 41. Rxe4 {[%clk 0:00:13]}  Rh1+ {[%clk 0:00:02]} 42. Kf2 {[%clk 0:00:13]}  Ra1 {[%clk 0:00:03]} 43. Re3 {[%clk 0:00:12]}  h2 {[%clk 0:00:00]} 44. Rh3 {[%clk 0:00:13]} 1-0


[Site "https://www.chess.com"]

[Event "Titled Tuesday Blitz November 07 Early 2023"]
[White "Sattarov, Bobir"]
[Black "Asavasaetakul, Chawit"]
[WhiteFideId "14203081"]
[BlackFideId "6204856"]
[WhiteElo "2776"]
[BlackElo "2655"]
[Result "0-1"]
[Round "8"]
[TimeControl "180+1"]
[Date "2023.11.07"]
[WhiteClock "0:00:00"]
[BlackClock "0:00:17"]
[Board "34"]

1. e4 {[%clk 0:03:00]}  d5 {[%clk 0:02:59]} 2. exd5 {[%clk 0:03:00]}  Nf6 {[%clk 0:02:59]} 3. c4 {[%clk 0:02:44]}  c6 {[%clk 0:02:59]} 4. d4 {[%clk 0:02:44]}  cxd5 {[%clk 0:02:59]} 5. Nc3 {[%clk 0:02:45]}  Nc6 {[%clk 0:02:59]} 6. Bg5 {[%clk 0:02:45]}  e6 {[%clk 0:02:18]} 7. Nf3 {[%clk 0:02:41]}  Be7 {[%clk 0:02:17]} 8. c5 {[%clk 0:02:32]}  Kf8 {[%clk 0:02:17]} 9. Bd3 {[%clk 0:02:20]}  b6 {[%clk 0:02:16]} 10. Qa4 {[%clk 0:02:08]}  Bb7 {[%clk 0:02:02]} 11. b4 {[%clk 0:02:06]}  a5 {[%clk 0:01:53]} 12. b5 {[%clk 0:01:35]}  Nb4 {[%clk 0:01:53]} 13. Be2 {[%clk 0:01:34]}  bxc5 {[%clk 0:01:53]} 14. a3 {[%clk 0:01:13]}  cxd4 {[%clk 0:01:53]} 15. Nxd4 {[%clk 0:01:13]}  Rc8 {[%clk 0:01:53]} 16. Rc1 {[%clk 0:00:59]}  Ne4 {[%clk 0:01:12]} 17. Nxe4 {[%clk 0:00:37]}  Rxc1+ {[%clk 0:01:05]} 18. Bxc1 {[%clk 0:00:37]}  dxe4 {[%clk 0:01:06]} 19. Bb2 {[%clk 0:00:26]}  Nd3+ {[%clk 0:01:05]} 20. Bxd3 {[%clk 0:00:25]}  exd3 {[%clk 0:01:06]} 21. O-O {[%clk 0:00:19]}  h5 {[%clk 0:01:06]} 22. Nc6 {[%clk 0:00:18]}  Bxc6 {[%clk 0:01:02]} 23. bxc6 {[%clk 0:00:19]}  Qb6 {[%clk 0:00:48]} 24. Bd4 {[%clk 0:00:18]}  Bc5 {[%clk 0:00:47]} 25. Qc4 {[%clk 0:00:14]}  Bxd4 {[%clk 0:00:45]} 26. c7 {[%clk 0:00:14]}  Ke7 {[%clk 0:00:46]} 27. c8=Q {[%clk 0:00:14]}  Rxc8 {[%clk 0:00:46]} 28. Qxc8 {[%clk 0:00:15]}  Qb2 {[%clk 0:00:32]} 29. Qc4 {[%clk 0:00:14]}  d2 {[%clk 0:00:27]} 30. Rd1 {[%clk 0:00:13]}  Bc3 {[%clk 0:00:26]} 31. a4 {[%clk 0:00:12]}  Qc2 {[%clk 0:00:25]} 32. Qc7+ {[%clk 0:00:07]}  Kf6 {[%clk 0:00:25]} 33. Qf4+ {[%clk 0:00:07]}  Kg6 {[%clk 0:00:25]} 34. Qf3 {[%clk 0:00:06]}  Qxa4 {[%clk 0:00:22]} 35. Qg3+ {[%clk 0:00:06]}  Kh6 {[%clk 0:00:20]} 36. Qe3+ {[%clk 0:00:04]}  g5 {[%clk 0:00:21]} 37. Qf3 {[%clk 0:00:03]}  Kg6 {[%clk 0:00:19]} 38. Kf1 {[%clk 0:00:02]}  Qc4+ {[%clk 0:00:18]} 39. Kg1 {[%clk 0:00:02]}  a4 {[%clk 0:00:17]} 40. h4 {[%clk 0:00:00]}  gxh4 {[%clk 0:00:17]} 0-1


[Site "https://www.chess.com"]

[Event "Titled Tuesday Blitz November 07 Early 2023"]
[White "Korchmar, Vasiliy"]
[Black "Predator0608"]
[WhiteFideId "24131750"]
[WhiteElo "2751"]
[BlackElo "2591"]
[Result "1-0"]
[Round "8"]
[TimeControl "180+1"]
[Date "2023.11.07"]
[WhiteClock "0:02:00"]
[BlackClock "0:00:15"]
[Board "36"]

1. e4 {[%clk 0:03:00]}  e5 {[%clk 0:03:00]} 2. Nf3 {[%clk 0:03:01]}  Nc6 {[%clk 0:03:00]} 3. Nc3 {[%clk 0:03:01]}  Nf6 {[%clk 0:03:00]} 4. Bb5 {[%clk 0:03:02]}  Bc5 {[%clk 0:02:54]} 5. Nxe5 {[%clk 0:03:01]}  Bxf2+ {[%clk 0:02:51]} 6. Kxf2 {[%clk 0:03:01]}  Nxe5 {[%clk 0:02:52]} 7. d4 {[%clk 0:02:54]}  Neg4+ {[%clk 0:02:41]} 8. Kg1 {[%clk 0:02:53]}  c6 {[%clk 0:02:35]} 9. Be2 {[%clk 0:02:51]}  h5 {[%clk 0:02:25]} 10. e5 {[%clk 0:02:46]}  Nd5 {[%clk 0:02:21]} 11. Ne4 {[%clk 0:02:46]}  O-O {[%clk 0:02:00]} 12. h3 {[%clk 0:02:38]}  Nge3 {[%clk 0:01:58]} 13. Qd3 {[%clk 0:02:37]}  Nf5 {[%clk 0:01:37]} 14. c4 {[%clk 0:02:35]}  Nb4 {[%clk 0:01:32]} 15. Qc3 {[%clk 0:02:24]}  Qh4 {[%clk 0:00:25]} 16. Bf3 {[%clk 0:02:17]}  Nxd4 {[%clk 0:00:17]} 17. Qxd4 {[%clk 0:02:08]}  Nc2 {[%clk 0:00:17]} 18. Qd1 {[%clk 0:02:00]}  Nxa1 {[%clk 0:00:15]} 19. Bg5 {[%clk 0:02:00]} 1-0


[Site "https://www.chess.com"]

[Event "Titled Tuesday Blitz November 07 Early 2023"]
[White "GaiozNigalidze"]
[Black "Kalogeris, Ioannis"]
[BlackFideId "4239563"]
[WhiteElo "2721"]
[BlackElo "2583"]
[Result "1-0"]
[Round "8"]
[TimeControl "180+1"]
[Date "2023.11.07"]
[WhiteClock "0:00:29"]
[BlackClock "0:00:00"]
[Board "38"]

1. d4 {[%clk 0:03:00]}  Nf6 {[%clk 0:02:59]} 2. c4 {[%clk 0:03:00]}  c6 {[%clk 0:02:59]} 3. Nc3 {[%clk 0:02:59]}  d5 {[%clk 0:02:59]} 4. cxd5 {[%clk 0:03:00]}  cxd5 {[%clk 0:02:59]} 5. Bf4 {[%clk 0:03:00]}  Nc6 {[%clk 0:02:59]} 6. e3 {[%clk 0:03:01]}  Bf5 {[%clk 0:02:56]} 7. Qb3 {[%clk 0:03:01]}  Na5 {[%clk 0:02:56]} 8. Qa4+ {[%clk 0:03:01]}  Bd7 {[%clk 0:02:56]} 9. Qd1 {[%clk 0:03:01]}  Rc8 {[%clk 0:02:27]} 10. Nf3 {[%clk 0:03:00]}  Bg4 {[%clk 0:02:18]} 11. Bb5+ {[%clk 0:03:00]}  Nc6 {[%clk 0:02:18]} 12. Qa4 {[%clk 0:02:56]}  Bxf3 {[%clk 0:02:15]} 13. gxf3 {[%clk 0:02:55]}  a6 {[%clk 0:02:09]} 14. Bd3 {[%clk 0:02:54]}  e6 {[%clk 0:02:04]} 15. a3 {[%clk 0:02:51]}  Nh5 {[%clk 0:02:00]} 16. Bg3 {[%clk 0:02:48]}  Be7 {[%clk 0:01:50]} 17. Rc1 {[%clk 0:02:37]}  O-O {[%clk 0:01:50]} 18. O-O {[%clk 0:02:27]}  g6 {[%clk 0:01:49]} 19. b4 {[%clk 0:02:23]}  Nxg3 {[%clk 0:01:45]} 20. hxg3 {[%clk 0:02:24]}  Kg7 {[%clk 0:01:38]} 21. Kg2 {[%clk 0:02:16]}  h5 {[%clk 0:01:37]} 22. f4 {[%clk 0:02:13]}  Rh8 {[%clk 0:01:32]} 23. Rh1 {[%clk 0:02:13]}  Qd6 {[%clk 0:01:18]} 24. Be2 {[%clk 0:02:08]}  Na7 {[%clk 0:00:39]} 25. Qb3 {[%clk 0:01:57]}  Rc7 {[%clk 0:00:38]} 26. Na4 {[%clk 0:01:53]}  Rhc8 {[%clk 0:00:33]} 27. Rxc7 {[%clk 0:01:46]}  Qxc7 {[%clk 0:00:34]} 28. Nc5 {[%clk 0:01:44]}  a5 {[%clk 0:00:30]} 29. Rc1 {[%clk 0:01:30]}  Qd8 {[%clk 0:00:24]} 30. Nxb7 {[%clk 0:01:27]}  Qd7 {[%clk 0:00:21]} 31. Rxc8 {[%clk 0:01:25]}  Qxc8 {[%clk 0:00:22]} 32. Nxa5 {[%clk 0:01:25]}  h4 {[%clk 0:00:21]} 33. gxh4 {[%clk 0:01:23]}  Qc1 {[%clk 0:00:20]} 34. b5 {[%clk 0:01:20]}  Nc8 {[%clk 0:00:19]} 35. b6 {[%clk 0:01:17]}  Bxh4 {[%clk 0:00:10]} 36. Bd3 {[%clk 0:00:35]}  Qe1 {[%clk 0:00:08]} 37. Qc2 {[%clk 0:00:35]}  Nxb6 {[%clk 0:00:07]} 38. Nb3 {[%clk 0:00:36]}  Nc4 {[%clk 0:00:06]} 39. Qe2 {[%clk 0:00:35]}  Qc3 {[%clk 0:00:06]} 40. Nc5 {[%clk 0:00:34]}  Nxa3 {[%clk 0:00:05]} 41. Bxg6 {[%clk 0:00:31]}  fxg6 {[%clk 0:00:03]} 42. Qg4 {[%clk 0:00:32]}  Bf6 {[%clk 0:00:03]} 43. Nxe6+ {[%clk 0:00:30]}  Kf7 {[%clk 0:00:03]} 44. Nc5 {[%clk 0:00:30]}  Nc4 {[%clk 0:00:02]} 45. Qd7+ {[%clk 0:00:30]}  Kg8 {[%clk 0:00:02]} 46. Qxd5+ {[%clk 0:00:30]}  Kh7 {[%clk 0:00:03]} 47. Qd7+ {[%clk 0:00:30]}  Kh6 {[%clk 0:00:03]} 48. Qh3+ {[%clk 0:00:30]}  Kg7 {[%clk 0:00:03]} 49. Ne6+ {[%clk 0:00:28]}  Kf7 {[%clk 0:00:03]} 50. d5 {[%clk 0:00:29]}  Qd3 {[%clk 0:00:03]} 51. Qh7+ {[%clk 0:00:28]}  Ke8 {[%clk 0:00:03]} 52. Qg8+ {[%clk 0:00:29]}  Ke7 {[%clk 0:00:03]} 53. Qf8+ {[%clk 0:00:28]}  Kd7 {[%clk 0:00:03]} 54. Nc5+ {[%clk 0:00:28]}  Kc7 {[%clk 0:00:00]} 55. Nxd3 {[%clk 0:00:29]} 1-0


[Site "https://www.chess.com"]

[Event "Titled Tuesday Blitz November 07 Early 2023"]
[White "Yeletsky, Ivan"]
[Black "Kanyamarala, Trisha"]
[WhiteFideId "24180327"]
[BlackFideId "45004722"]
[WhiteElo "2931"]
[BlackElo "2517"]
[Result "1-0"]
[Round "8"]
[TimeControl "180+1"]
[Date "2023.11.07"]
[WhiteClock "0:00:04"]
[BlackClock "0:00:00"]
[Board "40"]

1. Nc3 {[%clk 0:03:00]}  d5 {[%clk 0:02:54]} 2. e4 {[%clk 0:02:59]}  d4 {[%clk 0:02:54]} 3. Nce2 {[%clk 0:02:59]}  e5 {[%clk 0:02:53]} 4. Ng3 {[%clk 0:02:59]}  c5 {[%clk 0:02:53]} 5. Bc4 {[%clk 0:02:58]}  Nf6 {[%clk 0:02:45]} 6. d3 {[%clk 0:02:58]}  Be7 {[%clk 0:02:40]} 7. Nf3 {[%clk 0:02:54]}  Nc6 {[%clk 0:02:39]} 8. O-O {[%clk 0:02:55]}  O-O {[%clk 0:02:36]} 9. a3 {[%clk 0:02:55]}  a6 {[%clk 0:02:35]} 10. Ba2 {[%clk 0:02:33]}  b5 {[%clk 0:02:32]} 11. h3 {[%clk 0:02:20]}  Kh8 {[%clk 0:02:14]} 12. Ng5 {[%clk 0:02:16]}  Qe8 {[%clk 0:02:09]} 13. f4 {[%clk 0:02:08]}  h6 {[%clk 0:01:58]} 14. Nf3 {[%clk 0:02:00]}  Nd7 {[%clk 0:01:56]} 15. f5 {[%clk 0:01:46]}  Nf6 {[%clk 0:01:54]} 16. Nh2 {[%clk 0:01:42]}  c4 {[%clk 0:01:42]} 17. dxc4 {[%clk 0:01:41]}  b4 {[%clk 0:01:41]} 18. c5 {[%clk 0:01:35]}  Bxc5 {[%clk 0:01:39]} 19. Kh1 {[%clk 0:01:35]}  Bb7 {[%clk 0:01:36]} 20. Ng4 {[%clk 0:01:27]}  Be7 {[%clk 0:01:30]} 21. Nxf6 {[%clk 0:01:06]}  Bxf6 {[%clk 0:01:29]} 22. Qg4 {[%clk 0:01:02]}  Ne7 {[%clk 0:00:59]} 23. Nh5 {[%clk 0:01:00]}  Ng8 {[%clk 0:00:58]} 24. axb4 {[%clk 0:01:00]}  Qb5 {[%clk 0:00:51]} 25. Bd2 {[%clk 0:00:51]}  Rac8 {[%clk 0:00:35]} 26. Bb3 {[%clk 0:00:51]}  Rc7 {[%clk 0:00:24]} 27. Rae1 {[%clk 0:00:34]}  Rfc8 {[%clk 0:00:14]} 28. Rf3 {[%clk 0:00:30]}  Qe8 {[%clk 0:00:11]} 29. Rg3 {[%clk 0:00:26]}  Qf8 {[%clk 0:00:11]} 30. c3 {[%clk 0:00:22]}  dxc3 {[%clk 0:00:11]} 31. bxc3 {[%clk 0:00:23]}  Rd8 {[%clk 0:00:10]} 32. Bc1 {[%clk 0:00:19]}  Rdc8 {[%clk 0:00:10]} 33. Bd2 {[%clk 0:00:06]}  Rd8 {[%clk 0:00:10]} 34. Re2 {[%clk 0:00:07]}  Rcd7 {[%clk 0:00:10]} 35. Be3 {[%clk 0:00:05]}  Rd3 {[%clk 0:00:09]} 36. Bc5 {[%clk 0:00:04]}  Rxg3 {[%clk 0:00:04]} 37. Qxg3 {[%clk 0:00:05]}  Be7 {[%clk 0:00:02]} 38. Bxe7 {[%clk 0:00:03]}  Nxe7 {[%clk 0:00:02]} 39. f6 {[%clk 0:00:04]}  gxf6 {[%clk 0:00:01]} 40. Nxf6 {[%clk 0:00:04]}  Ng6 {[%clk 0:00:01]} 41. Ng4 {[%clk 0:00:05]}  Qg7 {[%clk 0:00:01]} 42. Kh2 {[%clk 0:00:06]}  h5 {[%clk 0:00:01]} 43. Ne3 {[%clk 0:00:06]}  h4 {[%clk 0:00:01]} 44. Qg5 {[%clk 0:00:06]}  Rf8 {[%clk 0:00:01]} 45. Nf5 {[%clk 0:00:06]}  Qh7 {[%clk 0:00:01]} 46. Qf6+ {[%clk 0:00:06]}  Kg8 {[%clk 0:00:01]} 47. Rf2 {[%clk 0:00:05]}  Bc8 {[%clk 0:00:01]} 48. Bd5 {[%clk 0:00:03]}  Bxf5 {[%clk 0:00:00]} 49. Rxf5 {[%clk 0:00:04]} 1-0


[Site "https://www.chess.com"]

[Event "Titled Tuesday Blitz November 07 Early 2023"]
[White "Atakhan, Abtin"]
[Black "Makhnev, Denis"]
[WhiteFideId "22502203"]
[BlackFideId "13707647"]
[WhiteElo "2717"]
[BlackElo "2919"]
[Result "0-1"]
[Round "8"]
[TimeControl "180+1"]
[Date "2023.11.07"]
[WhiteClock "0:00:00"]
[BlackClock "0:01:10"]
[Board "42"]

1. Nf3 {[%clk 0:03:00]}  d5 {[%clk 0:02:59]} 2. g3 {[%clk 0:03:00]}  Nc6 {[%clk 0:03:00]} 3. d4 {[%clk 0:03:00]}  Bf5 {[%clk 0:03:00]} 4. Bg2 {[%clk 0:03:00]}  e6 {[%clk 0:03:01]} 5. O-O {[%clk 0:02:58]}  Nb4 {[%clk 0:03:01]} 6. Na3 {[%clk 0:02:57]}  Nf6 {[%clk 0:03:02]} 7. c3 {[%clk 0:02:58]}  Nc6 {[%clk 0:03:02]} 8. Ne5 {[%clk 0:02:58]}  Nxe5 {[%clk 0:03:01]} 9. dxe5 {[%clk 0:02:58]}  Nd7 {[%clk 0:03:02]} 10. e4 {[%clk 0:02:51]}  Bxe4 {[%clk 0:02:58]} 11. Bxe4 {[%clk 0:02:50]}  dxe4 {[%clk 0:02:59]} 12. Qa4 {[%clk 0:02:49]}  Bxa3 {[%clk 0:02:58]} 13. bxa3 {[%clk 0:02:47]}  O-O {[%clk 0:02:59]} 14. Qxe4 {[%clk 0:02:44]}  Nc5 {[%clk 0:02:59]} 15. Qc4 {[%clk 0:02:39]}  b6 {[%clk 0:02:59]} 16. Be3 {[%clk 0:02:39]}  Qd3 {[%clk 0:03:00]} 17. Qg4 {[%clk 0:02:31]}  Nd7 {[%clk 0:02:41]} 18. Bf4 {[%clk 0:02:15]}  Rfd8 {[%clk 0:02:32]} 19. Rfd1 {[%clk 0:02:04]}  Qe4 {[%clk 0:02:32]} 20. Rd4 {[%clk 0:01:59]}  Nxe5 {[%clk 0:02:15]} 21. Qxg7+ {[%clk 0:01:51]}  Kxg7 {[%clk 0:02:15]} 22. Rxe4 {[%clk 0:01:52]}  Ng6 {[%clk 0:02:15]} 23. Bxc7 {[%clk 0:01:47]}  Rdc8 {[%clk 0:02:15]} 24. Be5+ {[%clk 0:01:38]}  Nxe5 {[%clk 0:02:15]} 25. Rxe5 {[%clk 0:01:39]}  Rxc3 {[%clk 0:02:16]} 26. a4 {[%clk 0:01:37]}  Ra3 {[%clk 0:02:15]} 27. Re4 {[%clk 0:01:35]}  Rd8 {[%clk 0:02:12]} 28. Rc1 {[%clk 0:01:32]}  Rd7 {[%clk 0:02:08]} 29. Rc2 {[%clk 0:01:28]}  h5 {[%clk 0:02:07]} 30. h4 {[%clk 0:01:29]}  Rd5 {[%clk 0:02:01]} 31. Rc7 {[%clk 0:01:26]}  Rf5 {[%clk 0:02:01]} 32. Rc2 {[%clk 0:01:14]}  Ra5 {[%clk 0:01:58]} 33. Rc7 {[%clk 0:01:11]}  R3xa4 {[%clk 0:01:58]} 34. Rxe6 {[%clk 0:01:10]}  Rxa2 {[%clk 0:01:58]} 35. Ree7 {[%clk 0:01:09]}  Rf5 {[%clk 0:01:58]} 36. Rxa7 {[%clk 0:01:09]}  Raxf2 {[%clk 0:01:57]} 37. Ra1 {[%clk 0:01:00]}  R2f3 {[%clk 0:01:47]} 38. Kg2 {[%clk 0:00:53]}  Rb3 {[%clk 0:01:47]} 39. Rb7 {[%clk 0:00:41]}  Rb2+ {[%clk 0:01:47]} 40. Kg1 {[%clk 0:00:40]}  Rf3 {[%clk 0:01:46]} 41. Rf1 {[%clk 0:00:36]}  Rxf1+ {[%clk 0:01:22]} 42. Kxf1 {[%clk 0:00:37]}  Kg6 {[%clk 0:01:23]} 43. Ke1 {[%clk 0:00:36]}  f6 {[%clk 0:01:20]} 44. Kf1 {[%clk 0:00:18]}  b5 {[%clk 0:01:20]} 45. Rb6 {[%clk 0:00:17]}  Kf5 {[%clk 0:01:18]} 46. Kg1 {[%clk 0:00:17]}  b4 {[%clk 0:01:17]} 47. Rb5+ {[%clk 0:00:16]}  Kg4 {[%clk 0:01:17]} 48. Kf1 {[%clk 0:00:15]}  b3 {[%clk 0:01:16]} 49. Ke1 {[%clk 0:00:12]}  Kxg3 {[%clk 0:01:13]} 50. Rxh5 {[%clk 0:00:12]}  Rh2 {[%clk 0:01:13]} 51. Rb5 {[%clk 0:00:11]}  b2 {[%clk 0:01:13]} 52. Kd1 {[%clk 0:00:00]}  Kxh4 {[%clk 0:01:10]} 0-1


[Site "https://www.chess.com"]

[Event "Titled Tuesday Blitz November 07 Early 2023"]
[White "Halkias, Stelios"]
[Black "Baskakov, Egor"]
[WhiteFideId "4201809"]
[BlackFideId "24197866"]
[WhiteElo "2728"]
[BlackElo "2907"]
[Result "0-1"]
[Round "8"]
[TimeControl "180+1"]
[Date "2023.11.07"]
[WhiteClock "0:00:01"]
[BlackClock "0:00:03"]
[Board "43"]

1. Nf3 {[%clk 0:03:00]}  Nf6 {[%clk 0:02:59]} 2. d4 {[%clk 0:03:00]}  e6 {[%clk 0:03:00]} 3. c4 {[%clk 0:03:00]}  d5 {[%clk 0:03:01]} 4. g3 {[%clk 0:03:00]}  Ne4 {[%clk 0:03:01]} 5. Bg2 {[%clk 0:02:59]}  Be7 {[%clk 0:03:02]} 6. O-O {[%clk 0:02:59]}  O-O {[%clk 0:03:02]} 7. Nbd2 {[%clk 0:02:58]}  f5 {[%clk 0:03:03]} 8. Qc2 {[%clk 0:02:58]}  c6 {[%clk 0:03:02]} 9. b3 {[%clk 0:02:58]}  Bd7 {[%clk 0:03:02]} 10. Bb2 {[%clk 0:02:58]}  Be8 {[%clk 0:03:03]} 11. Ne5 {[%clk 0:02:57]}  Nd7 {[%clk 0:03:03]} 12. Nd3 {[%clk 0:02:57]}  g5 {[%clk 0:02:59]} 13. Nf3 {[%clk 0:02:56]}  Rc8 {[%clk 0:02:58]} 14. Nfe5 {[%clk 0:02:53]}  Nxe5 {[%clk 0:02:57]} 15. dxe5 {[%clk 0:02:52]}  Bg6 {[%clk 0:02:49]} 16. Rad1 {[%clk 0:02:49]}  f4 {[%clk 0:02:47]} 17. Qc1 {[%clk 0:02:49]}  Qe8 {[%clk 0:02:27]} 18. c5 {[%clk 0:02:41]}  b6 {[%clk 0:02:13]} 19. b4 {[%clk 0:02:38]}  a5 {[%clk 0:02:11]} 20. a3 {[%clk 0:02:37]}  axb4 {[%clk 0:02:11]} 21. axb4 {[%clk 0:02:37]}  bxc5 {[%clk 0:02:12]} 22. bxc5 {[%clk 0:02:38]}  Ra8 {[%clk 0:02:12]} 23. f3 {[%clk 0:02:19]}  Nxg3 {[%clk 0:02:11]} 24. hxg3 {[%clk 0:02:07]}  fxg3 {[%clk 0:02:11]} 25. Qe3 {[%clk 0:02:07]}  Bxd3 {[%clk 0:01:41]} 26. Rxd3 {[%clk 0:01:56]}  Qh5 {[%clk 0:01:37]} 27. Rc1 {[%clk 0:01:54]}  Qh2+ {[%clk 0:01:34]} 28. Kf1 {[%clk 0:01:54]}  Ra2 {[%clk 0:01:25]} 29. Rb3 {[%clk 0:01:46]}  g4 {[%clk 0:01:13]} 30. Rb7 {[%clk 0:01:46]}  gxf3 {[%clk 0:01:07]} 31. exf3 {[%clk 0:01:42]}  Qh4 {[%clk 0:01:00]} 32. Ra1 {[%clk 0:01:00]}  Bg5 {[%clk 0:00:46]} 33. Qd3 {[%clk 0:00:49]}  Rxa1+ {[%clk 0:00:40]} 34. Bxa1 {[%clk 0:00:49]}  Ra8 {[%clk 0:00:33]} 35. Bb2 {[%clk 0:00:48]}  Qh2 {[%clk 0:00:24]} 36. f4 {[%clk 0:00:38]}  Rf8 {[%clk 0:00:20]} 37. Bd4 {[%clk 0:00:12]}  Rxf4+ {[%clk 0:00:11]} 38. Ke1 {[%clk 0:00:12]}  Rxd4 {[%clk 0:00:11]} 39. Qxd4 {[%clk 0:00:09]}  Qxg2 {[%clk 0:00:11]} 40. Rb8+ {[%clk 0:00:09]}  Kf7 {[%clk 0:00:11]} 41. Rb7+ {[%clk 0:00:08]}  Ke8 {[%clk 0:00:08]} 42. Rb8+ {[%clk 0:00:05]}  Kd7 {[%clk 0:00:08]} 43. Rb2 {[%clk 0:00:05]}  Qh1+ {[%clk 0:00:06]} 44. Ke2 {[%clk 0:00:04]}  g2 {[%clk 0:00:05]} 45. Qd3 {[%clk 0:00:03]}  Qh5+ {[%clk 0:00:05]} 46. Kf2 {[%clk 0:00:02]}  Qh1 {[%clk 0:00:03]} 47. Kf3 {[%clk 0:00:02]}  g1=Q+ {[%clk 0:00:03]} 48. Ke2 {[%clk 0:00:01]}  Qhg2# {[%clk 0:00:03]} 0-1


[Site "https://www.chess.com"]